[Event "XVII Profigaia Open 2017"]
[Site "Gaia"]
[Date "2017.06.18"]
[Round "7"]
[White "Silva, Mariana Sofia T"]
[Black "Moreira, Rafael Mota"]
[Result "1-0"]
[ECO "C45"]
[WhiteElo "1922"]
[BlackElo "1478"]
[Annotator "NA RC"]
[PlyCount "121"]
[EventDate "2017.??.??"]
[EventType "swiss"]
[EventCountry "POR"]
[SourceTitle "playchess.com"]
[Source "ChessBase"]
[SourceQuality "1"]
[TimeControl "5400+30"]

{[%evp 10,118,34,37,32767,32767,32767,23,28,10,32767,32767,32767,32767,32767,32767,32767,32767,32767,32767,32767,32767,32767,32767,32767,45,149,128,290,32767,289,95,32767,32767,183,192,32767,173,163,164,32767,143,211,220,224,224,233,231,32767,32767,297,295,403,32767,32767,329,308,333,400,387,433,425,32767,445,486,569,548,599,575,810,1106,971,641,1081,699,1105,902,2364,1411,5127,1695,32767,32767,32767,29985,32767,32767,32767,32767,32767,32767,32767,32767,29992,29992,29990,29990,29990,29992,29992,32767,32767,32767,32767,29994,29995,29997,29998,29998,1604,29998]} 1. e4 {[%emt 0:00:00]} e5 {[%emt 0:00:06]} 2. Nf3 {[%emt 0:00:00]} Nc6 {[%emt 0:00:27]} 3. d4 {[%emt 0:00:00]} exd4 {[%emt 0:05:15]} 4. Nxd4 {[%emt 0:00:03]} Bc5 {[%emt 0:05:05]} 5. Be3 {[%emt 0:01:54]} Bxd4 {[%emt 0:05:50] LiveBook: 17 Games} 6. Bxd4 {[%emt 0:00:09]} Nxd4 {[%emt 0:00:25]} 7. Qxd4 {[%emt 0:00:08]} Qf6 {[%emt 0:00:12]} 8. c3 {[%emt 0:12:22]} (8. e5 $5 {[%cal Re5f6]} Qb6 9. Qxb6 axb6 10. f4 $14) 8... d6 {[%emt 0:12:46] C45: Scotch Game} 9. g3 $146 {[%emt 0:06:08]} ({Predecessor:} 9. Na3 a6 10. Nc4 Qxd4 11. cxd4 Ne7 12. Rc1 Be6 13. d5 Bd7 14. Na5 O-O-O 15. Rc3 Rde8 16. Kd2 {1-0 (37) Berg,E (2348)-Socko,B (2543) Stockholm 1999}) 9... Qxd4 {[%emt 0:09:38]} 10. cxd4 {[%emt 0:00:06]} Nf6 {[%emt 0:00:25]} 11. Bg2 {[%emt 0:01:02]} O-O {[%emt 0:01:38]} 12. O-O {[%emt 0:00:18]} c5 {[%emt 0:01:52]} 13. Rd1 {[%emt 0:06:14]} Rb8 {[%emt 0:02:09]} 14. Nc3 {[%emt 0:02:14]} a6 {[%emt 0:05:15]} 15. dxc5 {[%emt 0:09:53]} dxc5 {[%emt 0:01:02]} 16. Na4 {[%emt 0:00:57]} Nd7 {[%emt 0:07:52]} 17. Rac1 {[%emt 0:00:54]} b6 {[%emt 0:00:34]} ({Black should play} 17... c4 $1 $14) 18. Rd6 {[%emt 0:00:19]} Rd8 $2 {[%emt 0:01:48]} (18... g5 $16 19. b3 g4) 19. Bh3 {[%emt 0:01:26]} Kf8 {[%emt 0:01:33] [#]} 20. Bxd7 $2 {[%emt 0:02:21]} (20. e5 $1 $18 {[%mdl 512] has better winning chances.}) 20... Rxd7 {[%emt 0:03:38]} 21. Rxb6 {[%emt 0:00:19]} Rxb6 {[%emt 0:00:57]} 22. Nxb6 {[%emt 0:00:07]} Rc7 {[%emt 0:00:14]} 23. a3 {[%emt 0:13:25]} Be6 {[%emt 0:01:22]} 24. Na4 {[%emt 0:01:15]} c4 {[%emt 0:02:35]} 25. b3 {[%emt 0:03:05]} c3 {[%emt 0:03:01] [#]} (25... Rc8 $16) 26. b4 $1 {[%emt 0:00:36]} ({Don't play} 26. Rxc3 $6 Rxc3 27. Nxc3 Bxb3 $16) ({Don't take} 26. Nxc3 $6 Bxb3 27. Ne2 Rd7 $16) 26... Rc4 {[%emt 0:01:46]} 27. Nxc3 {[%emt 0:03:46]} ({Don't play} 27. Rxc3 $6 Rxe4 28. Nc5 Re1+ 29. Kg2 Bd5+ 30. f3 Re2+ 31. Kg1 Be6) 27... Ke7 {[%emt 0:01:24]} 28. f3 {[%emt 0:01:37]} Kf6 {[%emt 0:01:41]} 29. Kf2 {[%emt 0:03:35]} Ke5 {[%emt 0:02:05]} 30. Ke3 {[%emt 0:00:29]} f5 {[%emt 0:01:17]} 31. exf5 {[%emt 0:01:44]} Kxf5 {[%emt 0:00:32]} 32. Ne2 {[%emt 0:00:31]} Rxc1 {[%emt 0:01:07]} 33. Nxc1 {[%emt 0:00:05]} Bc4 {[%emt 0:00:05]} 34. Nd3 {[%emt 0:01:20]} Bb5 {[%emt 0:00:38]} 35. Kd4 {[%emt 0:00:35]} g5 {[%emt 0:00:14]} 36. Nc5 {[%emt 0:00:46]} h5 {[%emt 0:01:11]} 37. a4 {[%emt 0:02:26]} Be2 {[%emt 0:00:28]} 38. Ke3 {[%emt 0:00:19]} Bf1 {[%emt 0:00:33]} 39. Ne4 {[%emt 0:01:34]} g4 {[%emt 0:00:43]} 40. f4 {[%emt 0:02:57]} Bg2 {[%emt 0:01:13]} 41. Nc5 {[%emt 0:00:38]} Bf1 {[%emt 0:00:21]} 42. Kd4 {[%emt 0:00:43]} h4 {[%emt 0:00:24]} 43. Nd3 {[%emt 0:02:49]} Be2 {[%emt 0:01:50]} 44. b5 {[%emt 0:01:00]} Bf3 45. b6 hxg3 {[%emt 0:02:09]} 46. hxg3 {[%emt 0:00:39]} Kf6 {[%emt 0:00:51]} 47. Nc5 {[%emt 0:00:21]} Ke7 {[%emt 0:00:19]} 48. b7 {[%emt 0:00:10]} Bxb7 {[%emt 0:00:05]} 49. Nxb7 {[%emt 0:00:06]} Kd7 {[%emt 0:00:10]} 50. Nc5+ {[%emt 0:00:07]} Kc6 {[%emt 0:00:12]} 51. f5 {[%emt 0:00:16]} a5 {[%emt 0:00:04] [#]} 52. Nb7 $1 {[%emt 0:01:44]} Kd7 {[%emt 0:00:27]} 53. Kd5 {[%emt 0:00:07]} Kc7 {[%emt 0:00:08]} 54. Ke6 {[%emt 0:00:17]} Kb6 {[%emt 0:00:22]} 55. f6 {[%emt 0:00:08]} Kc6 {[%emt 0:00:08]} 56. f7 {[%emt 0:00:07]} Kb6 {[%emt 0:00:09]} 57. f8=Q {[%emt 0:00:09]} Ka6 {[%emt 0:00:10]} 58. Nc5+ {[%emt 0:00:25]} Kb6 {[%emt 0:00:23]} 59. Qd6+ {[%emt 0:00:08]} (59. Qc8 $142 Ka7 60. Qb7#) 59... Ka7 {[%emt 0:00:10]} 60. Qc7+ {[%emt 0:00:10]} Ka8 61. Qb7# 1-0

[Event "XVII Profigaia Open 2017"]
[Site "Gaia"]
[Date "2017.06.18"]
[Round "7"]
[White "Duarte, Duarte"]
[Black "Da Silva, Daniel Leite"]
[Result "1-0"]
[ECO "D53"]
[WhiteElo "1916"]
[BlackElo "2033"]
[Annotator "NA RC"]
[PlyCount "57"]
[EventDate "2017.??.??"]
[EventType "swiss"]
[EventCountry "POR"]
[SourceTitle "playchess.com"]
[Source "ChessBase"]
[SourceQuality "1"]
[TimeControl "5400+30"]

{[%evp 15,55,12,50,52,99,88,99,80,118,108,87,61,32767,60,32767,50,32767,32767,32767,32767,32767,32767,32767,32767,32767,32767,-104,-109,6,32767,9,12,14,32767,-17,0,377,414,490,516,961,1001]} 1. d4 {[%emt 0:00:00]} d5 {[%emt 0:01:05]} 2. c4 {[%emt 0:00:00]} e6 {[%emt 0:00:14]} 3. Nc3 {[%emt 0:00:00]} Nf6 {[%emt 0:00:55]} 4. Bg5 {[%emt 0:00:00]} Be7 {[%emt 0:00:30]} 5. e3 {[%emt 0:00:06]} O-O {[%emt 0:02:45]} 6. Bd3 {[%emt 0:01:29]} b6 {[%emt 0:03:28]} 7. cxd5 {[%emt 0:00:09]} exd5 {[%emt 0:01:43]} 8. Nge2 {[%emt 0:01:57] D35: Queen's Gambit Declined: Exchange Variation} (8. Bxf6 $1 $16 Bxf6 9. Qh5) 8... Be6 {[%emt 0:02:47]} 9. O-O {[%emt 0:01:08]} Nbd7 {[%emt 0:01:57]} 10. Nf4 {[%emt 0:02:16]} c6 {[%emt 0:04:34]} 11. Qf3 $146 {[%emt 0:03:08]} ({Predecessor:} 11. Rc1 Ne8 12. Bxe7 Qxe7 13. e4 Qg5 14. g3 Nc7 {1-0 (35) Xu,J (2505)-Xia,Y (2355) Beijing 1996}) 11... h6 {[%emt 0:01:54]} 12. Nxe6 {[%emt 0:06:05]} fxe6 {[%emt 0:00:28]} 13. Bxf6 {[%emt 0:06:35]} Bxf6 {[%emt 0:03:22]} 14. Qg4 {[%emt 0:01:02]} Qe8 {[%emt 0:01:12] [#]} 15. f4 {[%emt 0:02:09]} ({White should play} 15. Ne2 $1 $16) 15... Qf7 {[%emt 0:03:32]} 16. Bg6 {[%emt 0:10:01]} Qe7 {[%emt 0:02:17]} 17. Bc2 {[%emt 0:00:25]} Rfc8 {[%emt 0:02:50]} 18. Rf3 {[%emt 0:02:34]} Kh8 {[%emt 0:02:13]} 19. Rh3 {[%emt 0:01:56]} c5 {[%emt 0:05:58]} 20. dxc5 {[%emt 0:15:06]} Rxc5 {[%emt 0:03:12]} 21. e4 {[%emt 0:29:28]} Rac8 {[%emt 0:24:15]} ({Better is} 21... Bxc3 $17 22. bxc3 Rac8) 22. e5 {[%emt 0:04:52]} d4 $1 {[%emt 0:01:21]} 23. Qg6 {[%emt 0:00:09]} ({Much worse is} 23. exf6 Nxf6 24. Qg3 dxc3 $15) 23... Nf8 {[%emt 0:00:46]} 24. Rxh6+ {[%emt 0:02:53]} gxh6 {[%emt 0:09:02]} 25. Qxh6+ {[%emt 0:00:06]} Nh7 $2 {[%emt 0:00:37]} (25... Kg8 $11 26. exf6 Qf7) 26. exf6 {[%emt 0:00:10]} Qd7 {[%emt 0:02:59]} 27. Rd1 {[%emt 0:00:35]} e5 {[%emt 0:09:48]} 28. Bg6 $18 {[%emt 0:01:23]} R8c7 29. f7 {[%emt 0:01:06]} 1-0

[Event "XVII Profigaia Open 2017"]
[Site "Gaia"]
[Date "2017.06.18"]
[Round "7"]
[White "Sousa, Hugo Carneiro"]
[Black "Catarro, Jose Joao Dias"]
[Result "1-0"]
[ECO "A00"]
[WhiteElo "1877"]
[BlackElo "1833"]
[Annotator "NA RC"]
[PlyCount "95"]
[EventDate "2017.??.??"]
[EventType "swiss"]
[EventCountry "POR"]
[SourceTitle "playchess.com"]
[Source "ChessBase"]
[SourceQuality "1"]
[TimeControl "5400+30"]

{[%evp 13,94,12,73,21,32767,13,43,32767,0,0,0,-40,32767,32767,32767,32767,32767,32767,32767,32767,32767,32767,32767,32767,32767,32767,32767,32767,32767,0,0,32767,32767,32767,0,0,20,-10,137,118,32767,18,32767,32767,32767,32767,32767,32767,32767,145,156,32767,32767,127,144,158,323,358,390,327,442,449,531,594,574,5189,2832,1860,12834,12837,12836,12839,29987,29988,29988,32767,29989,29990,32767,32767,32767,29985,29983]} 1. e3 {[%emt 0:00:00]} e5 {[%emt 0:03:17]} 2. d4 {[%emt 0:00:33]} exd4 {[%emt 0:02:35]} 3. exd4 {[%emt 0:00:06]} d5 {[%emt 0:00:54]} 4. Nf3 {[%emt 0:00:14]} Nf6 {[%emt 0:00:06]} 5. c4 {[%emt 0:00:06]} c6 {[%emt 0:00:41]} 6. Nc3 {[%emt 0:01:15]} Be6 {[%emt 0:00:44] C01: French: Exchange Variation} (6... Be7 7. Qb3 O-O 8. Be3 dxc4 9. Bxc4 b5 10. Bd3 Na6 11. a3 b4 12. Bxa6 bxc3 13. Bxc8 cxb2 14. Qxb2 Rxc8 15. O-O {0-1 (42) Nosenko,A (2524)-Simacek,P (2474) Legnica 2016}) 7. c5 {[%emt 0:04:26]} Nbd7 {[%emt 0:01:04]} 8. Bf4 {[%emt 0:02:01]} Be7 {[%emt 0:01:57]} 9. Bd3 {[%emt 0:01:09]} Nh5 $146 {[%emt 0:09:01]} ({Predecessor:} 9... b6 10. b4 a5 11. b5 Qc8 12. bxc6 Qxc6 13. Nb5 O-O 14. Nc7 Rac8 15. Bb5 Qb7 16. c6 Qa7 17. cxd7 Rxc7 18. Bxc7 Qxc7 19. Rc1 Bb4+ 20. Kf1 Qf4 21. Ne5 {1-0 (21) Giemza,J (1986)-Kowalczyk,S (1660) Grodzisk Mazowiecki 2007}) 10. Bg3 {[%emt 0:03:14]} Nxg3 {[%emt 0:03:43]} 11. hxg3 {[%emt 0:00:13]} h5 {[%emt 0:02:17]} 12. Nh4 {[%emt 0:05:10]} Qc7 {[%emt 0:04:48]} 13. Bf5 {[%emt 0:10:27]} Rh6 {[%emt 0:03:18]} 14. Bxe6 {[%emt 0:03:41]} Rxe6+ {[%emt 0:00:36]} 15. Kf1 {[%emt 0:00:20]} g6 {[%emt 0:01:19]} 16. Ne2 {[%emt 0:04:20]} Bxh4 {[%emt 0:03:31]} 17. gxh4 {[%emt 0:03:19]} O-O-O {[%emt 0:01:39]} 18. Qd2 {[%emt 0:02:52]} Rde8 {[%emt 0:01:09]} 19. Re1 {[%emt 0:02:09]} Nf6 {[%emt 0:01:02]} 20. f3 {[%emt 0:01:30]} Qe7 {[%emt 0:04:20]} 21. Kf2 {[%emt 0:04:42]} Ng8 {[%emt 0:03:15]} 22. Ng3 {[%emt 0:08:36]} Qf6 {[%emt 0:01:48]} 23. Rxe6 {[%emt 0:05:45]} Rxe6 {[%emt 0:00:21]} 24. Ne2 {[%emt 0:00:25]} Qg7 {[%emt 0:02:46]} 25. g3 {[%emt 0:08:20]} f6 {[%emt 0:07:57]} ({Better is} 25... Nh6 $11) 26. Nf4 {[%emt 0:02:04]} Re7 {[%emt 0:04:42]} 27. Re1 {[%emt 0:00:27]} ({White should try} 27. Qd3 $16) 27... Rxe1 {[%emt 0:05:26]} 28. Qxe1 {[%emt 0:00:11]} Qf7 {[%emt 0:00:15]} 29. Qe6+ {[%emt 0:02:16]} Qxe6 {[%emt 0:00:19]} 30. Nxe6 {[%emt 0:00:05]} Ne7 {[%emt 0:00:28] [#]} 31. g4 $1 {[%emt 0:01:00]} Kd7 {[%emt 0:00:47]} 32. Ng7 {[%emt 0:03:23]} hxg4 {[%emt 0:00:26]} 33. fxg4 {[%emt 0:00:06]} Ng8 {[%emt 0:02:05]} 34. h5 {[%emt 0:01:11]} gxh5 {[%emt 0:04:20]} (34... b6 {was worth a try.} 35. cxb6 (35. hxg6 bxc5 36. Nf5 c4 $16) 35... axb6 36. hxg6 Ne7) 35. gxh5 {[%emt 0:00:35]} Nh6 {[%emt 0:00:39]} 36. Kf3 {[%emt 0:00:25]} Ke7 {[%emt 0:00:16]} 37. Kf4 {[%emt 0:00:17]} Ng8 {[%emt 0:02:33]} (37... Nf7 $142 38. Nf5+ Kf8) 38. Nf5+ {[%emt 0:00:23]} Kf7 {[%emt 0:05:54]} 39. b4 {[%emt 0:00:18]} b6 {[%emt 0:00:25]} 40. a3 {[%emt 0:00:39]} (40. h6 $142 Nxh6 41. Nxh6+ Ke6 42. a3) 40... b5 {[%emt 0:00:56]} 41. Kg4 {[%emt 0:00:16]} a6 {[%emt 0:01:41]} 42. Kf4 {[%emt 0:00:06]} Ne7 {[%emt 0:03:27]} 43. Nxe7 {[%emt 0:00:16]} Kxe7 {[%emt 0:00:02]} 44. Kf5 {[%emt 0:00:08]} Kf7 {[%emt 0:00:28]} 45. h6 {[%emt 0:00:05]} Kg8 {[%emt 0:01:48]} 46. Kxf6 {[%emt 0:00:09]} Kh7 {[%emt 0:00:19]} 47. Ke6 {[%emt 0:00:32]} Kxh6 {[%emt 0:00:19]} 48. Kd6 {[%emt 0:00:04]} 1-0

[Event "XVII Profigaia Open 2017"]
[Site "Gaia"]
[Date "2017.06.18"]
[Round "7"]
[White "Mendes, Pedro"]
[Black "Soares, Sara Joana De Moura"]
[Result "1-0"]
[ECO "C88"]
[WhiteElo "1867"]
[BlackElo "1183"]
[Annotator "NA RC"]
[PlyCount "103"]
[EventDate "2017.??.??"]
[EventType "swiss"]
[EventCountry "POR"]
[SourceTitle "playchess.com"]
[Source "ChessBase"]
[SourceQuality "1"]
[TimeControl "5400+30"]

{[%evp 14,93,40,30,36,32767,41,32767,32767,32767,32767,32767,32767,32767,44,32767,94,32767,89,66,87,59,82,79,73,32767,32767,32767,32767,32767,110,4,0,0,72,41,55,20,20,5,32767,32767,32767,18,29,-7,0,0,0,-4,49,16,39,28,68,66,67,62,62,164,175,167,177,112,126,32767,32767,32767,181,151,222,240,311,201,319,316,322,375,847,928,1168,1790]} 1. e4 {[%emt 0:00:39]} e5 {[%emt 0:00:11]} 2. Nf3 {[%emt 0:00:06]} Nc6 {[%emt 0:00:22]} 3. Bb5 {[%emt 0:00:22]} a6 {[%emt 0:00:19]} 4. Ba4 {[%emt 0:00:06]} Nf6 {[%emt 0:00:31]} 5. O-O {[%emt 0:00:07]} Be7 {[%emt 0:01:44]} 6. Re1 {[%emt 0:06:38]} b5 {[%emt 0:01:53]} 7. Bb3 {[%emt 0:00:07]} O-O {[%emt 0:01:51]} 8. a4 {[%emt 0:03:56] LiveBook: 1961 Games} Bb7 {[%emt 0:20:13]} 9. d3 {[%emt 0:00:46]} Bc5 {[%emt 0:13:37] C88: Closed Ruy Lopez: Anti-Marshall Systems} (9... d5 10. exd5 Nxd5 11. Nbd2 f6 12. axb5 axb5 13. Rxa8 Bxa8 14. c4 bxc4 15. Nxc4 Kh8 16. d4 Bb4 17. Re4 Nde7 18. Rh4 Nf5 19. Rh3 Ncxd4 20. Nxd4 exd4 21. Qg4 Nh6 22. Bxh6 gxh6 23. Rg3 Rg8 24. Nd6 {1-0 (24) Wang,H (2683)-Sethuraman,S (2629) Sharjah 2017}) 10. Bg5 {[%emt 0:08:19]} h6 {[%emt 0:00:39]} 11. Bh4 {[%emt 0:00:31]} Qe7 $146 {[%emt 0:03:21]} ({Predecessor:} 11... Be7 12. Na3 b4 13. Nc4 d6 14. Ne3 Na5 15. Ba2 g6 16. Nd2 Bc6 17. Rf1 {1-0 (55) Artemiev,V (2461)-Belyakov,B (2388) Tyumen 2012}) 12. Nc3 {[%emt 0:03:00]} Nd4 {[%emt 0:02:55]} 13. Nd5 {[%emt 0:24:06]} Bxd5 $1 {[%emt 0:01:23]} 14. exd5 {[%emt 0:02:21]} d6 {[%emt 0:04:56]} (14... Nxb3 $11 {keeps the balance.} 15. cxb3 Qd6) 15. Nxd4 {[%emt 0:04:17]} Bxd4 {[%emt 0:02:56]} 16. c3 {[%emt 0:00:12]} Bb6 {[%emt 0:00:39]} 17. d4 {[%emt 0:01:01]} g5 {[%emt 0:16:12]} 18. Bg3 {[%emt 0:00:30]} Nd7 {[%emt 0:00:23]} 19. axb5 {[%emt 0:20:56]} axb5 {[%emt 0:02:10]} 20. Rxa8 {[%emt 0:00:18]} Rxa8 {[%emt 0:00:13]} 21. Qd3 {[%emt 0:05:24]} Ra5 {[%emt 0:03:34]} (21... h5 $11) 22. Qe4 {[%emt 0:09:18]} ({Better is} 22. Bc2 $16 f6 23. Qg6+ Qg7 24. Qe8+ Nf8 25. Bf5 (25. dxe5 fxe5 26. Bf5 Qf6 $14)) 22... Qf6 {[%emt 0:01:25]} 23. Qg4 {[%emt 0:02:45]} Nf8 {[%emt 0:01:22]} (23... exd4 $11 {remains equal.} 24. cxd4 (24. Qxd7 dxc3 25. Qe8+ Kg7 $11) 24... Nf8) 24. dxe5 {[%emt 0:03:03]} dxe5 {[%emt 0:00:34]} 25. Qe2 {[%emt 0:00:26]} Ng6 $1 {[%emt 0:01:29]} 26. h3 {[%emt 0:00:15]} Kh7 {[%emt 0:04:45]} 27. Kh2 {[%emt 0:01:01]} Kg8 {[%emt 0:03:46]} 28. f3 {[%emt 0:00:19]} (28. Bc2 $16) 28... Kg7 {[%emt 0:01:31]} 29. Bxe5 {[%emt 0:00:28]} Nxe5 {[%emt 0:00:12]} 30. Qxe5 {[%emt 0:00:10]} Qxe5+ 31. Rxe5 {[%emt 0:00:10]} Ra8 {[%emt 0:01:01]} 32. Kg3 {[%emt 0:01:01]} (32. d6 $5) 32... Rd8 {[%emt 0:00:41]} 33. Kg4 {[%emt 0:00:28]} Kg6 {[%emt 0:00:01]} 34. Bc2+ {[%emt 0:00:23]} Kf6 {[%emt 0:00:24]} 35. Rf5+ {[%emt 0:00:11]} Kg6 {[%emt 0:01:10]} (35... Kg7) 36. Rxg5+ $1 {[%emt 0:00:22]} Kf6 {[%emt 0:00:45]} 37. Rf5+ {[%emt 0:00:04]} Kg7 {[%emt 0:00:45]} 38. Bb3 {[%emt 0:01:54]} Rd7 {[%emt 0:01:05]} 39. Re5 {[%emt 0:01:10]} f6 {[%emt 0:01:31]} 40. Re4 {[%emt 0:00:24]} Kg6 {[%emt 0:00:52]} 41. Rb4 {[%emt 0:00:34]} Re7 {[%emt 0:00:32]} (41... f5+ $16 {was worth a try.} 42. Kg3 Re7 43. Rxb5 h5) 42. Bc2+ {[%emt 0:00:23]} Kg7 {[%emt 0:00:16]} 43. Be4 {[%emt 0:00:35]} ({Resist} 43. Rxb5 Re2 $18) 43... Re8 {[%emt 0:01:26]} (43... Re5 {was worth a try.} 44. Rxb5 Be3) 44. Rxb5 {[%emt 0:00:22]} Bf2 {[%emt 0:00:47]} 45. Rb7 {[%emt 0:00:25]} Bb6 $2 {[%emt 0:01:00]} (45... f5+ 46. Bxf5 Kf6) 46. d6 {[%emt 0:00:37]} Kf8 {[%emt 0:01:55]} 47. dxc7 $18 {[%emt 0:00:20]} h5+ {[%emt 0:01:23]} 48. Kxh5 {[%emt 0:00:33]} Re5+ {[%emt 0:00:29]} 49. Kg6 {[%emt 0:00:41]} Re8 {[%emt 0:00:51]} 50. Rxb6 {[%emt 0:00:27]} Ke7 {[%emt 0:00:55]} 51. Rb8 {[%emt 0:00:26]} Rxb8 {[%emt 0:00:13]} 52. cxb8=Q {[%emt 0:00:10] Kd6 Bd5+ Kxd5} 1-0

[Event "XVII Profigaia Open 2017"]
[Site "Gaia"]
[Date "2017.06.18"]
[Round "7"]
[White "De Moura, Fernando Alves"]
[Black "Ribeiro, Andre Amorim"]
[Result "1-0"]
[ECO "B32"]
[WhiteElo "1814"]
[BlackElo "1463"]
[Annotator "NA RC"]
[PlyCount "103"]
[EventDate "2017.??.??"]
[EventType "swiss"]
[EventCountry "POR"]
[SourceTitle "playchess.com"]
[Source "ChessBase"]
[SourceQuality "1"]
[TimeControl "5400+30"]

{[%evp 16,103,37,39,31,44,38,33,38,50,56,46,67,32767,32767,35,32767,47,32767,31,62,32767,64,32767,70,44,87,59,182,132,176,32767,32767,32767,32767,32767,239,32767,231,241,266,132,139,129,264,173,231,232,228,159,151,121,32767,145,179,143,138,145,133,130,139,124,130,81,73,93,146,-853,32767,32767,32767,0,132,114,250,244,247,141,538,486,440,466,454,491,515,581,563,620,555,634]} 1. e4 {[%emt 0:00:00]} c5 {[%emt 0:03:48]} 2. Nf3 {[%emt 0:00:59]} Nc6 {[%emt 0:00:56]} 3. d4 {[%emt 0:00:36]} cxd4 {[%emt 0:00:06]} 4. Nxd4 {[%emt 0:00:09]} e5 {[%emt 0:00:04]} 5. Nb5 {[%emt 0:03:01]} a6 {[%emt 0:00:26]} 6. Nd6+ {[%emt 0:01:43]} Bxd6 {[%emt 0:00:09]} 7. Qxd6 {[%emt 0:00:11]} Qe7 {[%emt 0:00:02]} 8. Qxe7+ {[%emt 0:07:15]} Ngxe7 {[%emt 0:01:55]} 9. c4 {[%emt 0:02:12] B32: Sicilian: Löwenthal and Kalashnikov Variations} (9. Nc3 d5 10. Bd2 Be6 11. O-O-O O-O-O 12. f3 Kc7 13. b3 f6 14. exd5 Nxd5 15. Nxd5+ Rxd5 16. Bd3 h6 17. Be4 Rd7 18. Bc3 {½-½ (73) Carlsen,M (2837)-Radjabov,T (2788) Astana 2012}) 9... Nd4 {[%emt 0:05:23] LiveBook: 6 Games} 10. Bd3 {[%emt 0:01:02]} d6 {[%emt 0:01:33]} 11. Nc3 {[%emt 0:03:02]} O-O $146 {[%emt 0:04:00]} ({Predecessor:} 11... Be6 12. b3 Rc8 13. Kd2 O-O 14. Ba3 Rcd8 15. Nd5 Nec6 16. Nb6 f5 {½-½ (31) Vovk,A (2619)-Moldovan,D (2438) Mamaia 2015}) 12. O-O {[%emt 0:00:16]} Be6 {[%emt 0:05:47]} 13. b3 {[%emt 0:02:21]} f5 {[%emt 0:09:27]} 14. Ba3 {[%emt 0:06:17]} Rfd8 {[%emt 0:07:38]} 15. f3 {[%emt 0:01:59]} (15. f4 $16) 15... Rac8 {[%emt 0:03:16]} 16. Rac1 {[%emt 0:01:23]} f4 {[%emt 0:11:09]} 17. Rfd1 {[%emt 0:07:04]} Nec6 {[%emt 0:13:20]} 18. Kf2 {[%emt 0:05:38]} Kf7 {[%emt 0:02:40]} 19. Nd5 {[%emt 0:08:35]} a5 {[%emt 0:11:49]} 20. Bb1 {[%emt 0:02:14]} Bxd5 {[%emt 0:00:58]} 21. exd5 {[%emt 0:02:36]} Nb4 {[%emt 0:00:36]} (21... Ne7 $1 $14) 22. Bb2 {[%emt 0:00:26]} b5 {[%emt 0:06:08]} 23. Bxd4 {[%emt 0:00:58]} exd4 {[%emt 0:00:12]} 24. Rxd4 {[%emt 0:00:10]} bxc4 {[%emt 0:00:05]} 25. Rxf4+ {[%emt 0:04:22]} Kg8 {[%emt 0:01:32]} 26. Rfxc4 {[%emt 0:08:11]} Rxc4 {[%emt 0:00:48]} 27. bxc4 {[%emt 0:01:07]} Rc8 {[%emt 0:00:31]} 28. Ke3 {[%emt 0:03:57]} (28. Bf5 $18 Rb8 29. c5) 28... Nxd5+ {[%emt 0:00:56]} 29. Ke4 {[%emt 0:02:59]} Nb4 {[%emt 0:03:15]} (29... Nc7 $16 30. Rd1 Rb8) 30. Kd4 {[%emt 0:00:58]} g6 {[%emt 0:00:35]} 31. a3 {[%emt 0:01:07]} Na6 {[%emt 0:03:02]} 32. Bd3 {[%emt 0:00:49]} Nc5 {[%emt 0:01:20]} 33. Rb1 {[%emt 0:01:42]} Kf7 {[%emt 0:01:18]} 34. Be4 {[%emt 0:03:59]} Ne6+ {[%emt 0:01:31]} 35. Kc3 {[%emt 0:00:26]} Nc5 {[%emt 0:00:22]} 36. Bd5+ {[%emt 0:00:27]} Kf6 {[%emt 0:00:23]} 37. Rb5 {[%emt 0:00:56]} a4 {[%emt 0:00:16]} 38. Rb6 {[%emt 0:00:40]} Ke7 $1 {[%emt 0:00:13]} 39. Rb2 {[%emt 0:04:08]} Kd7 {[%emt 0:01:31]} 40. Be4 {[%emt 0:01:21]} Ke6 {[%emt 0:00:21]} ({Black should try} 40... Re8) 41. Rb4 {[%emt 0:00:54]} (41. Rb3 $2) (41. Bb7 $16 Rh8 42. Bc6) 41... Ke5 {[%emt 0:00:48]} 42. Bd5 {[%emt 0:01:42]} Kf6 {[%emt 0:00:08]} 43. Rb6 {[%emt 0:02:14]} ({White should play} 43. Kd4 $16) 43... Ke7 {[%emt 0:00:20]} 44. Bc6 {[%emt 0:00:18]} Kd8 {[%emt 0:01:10] [#]} (44... g5 $16 {is a better defense.} 45. g3 Ke6) 45. Bb5 $1 {[%emt 0:00:36]} Ke7 {[%emt 0:00:22]} 46. Kb4 {[%emt 0:00:46]} (46. Rc6 $18 Rh8 47. Rc7+ Kf6 48. Ra7) 46... Kd8 $2 {[%emt 0:00:42]} (46... Ke6 $16 {is more resistant.} 47. Rc6 (47. Bxa4 Nxa4 48. Kxa4 Rxc4+ 49. Kb3 Rc1 $16) 47... Ra8) 47. Rxd6+ {[%emt 0:00:20]} Ke7 {[%emt 0:00:12]} 48. Rc6 {[%emt 0:00:30]} Nd3+ {[%emt 0:00:08]} 49. Kc3 {[%emt 0:00:30]} Rxc6 {[%emt 0:00:13]} 50. Bxc6 {[%emt 0:00:13]} Nc5 {[%emt 0:00:05]} 51. Kb4 {[%emt 0:00:29]} Kd6 {[%emt 0:00:03]} 52. Bxa4 $18 {[%emt 0:01:48] Kd5} 1-0

[Event "XVII Profigaia Open 2017"]
[Site "Gaia"]
[Date "2017.06.18"]
[Round "7"]
[White "Pereira, Andre Marques"]
[Black "Marques, Ricardo Taborda Tri"]
[Result "0-1"]
[ECO "C00"]
[WhiteElo "1746"]
[BlackElo "1714"]
[Annotator "NA"]
[PlyCount "74"]
[EventDate "2017.??.??"]
[EventType "swiss"]
[EventCountry "POR"]
[SourceTitle "playchess.com"]
[Source "ChessBase"]
[SourceQuality "1"]
[TimeControl "5400+30"]

1. e4 e6 2. Nf3 d5 3. e5 c5 4. Bb5+ Bd7 5. Bxd7+ Nxd7 6. O-O g6 7. Re1 Bg7 8. d3 Ne7 9. Bg5 h6 10. Bxe7 Qxe7 11. Nc3 O-O-O 12. Nb5 Kb8 13. Qd2 a6 14. Nc3 g5 15. h3 Rdg8 16. g3 f5 17. exf6 Bxf6 18. Re2 g4 19. hxg4 Rxg4 20. Nh2 Rgg8 21. Qf4+ Kc8 22. Na4 e5 23. Qf5 Rg5 24. Nb6+ Kd8 25. Qxd7+ Qxd7 26. Nxd7 Kxd7 27. Nf3 Rf5 28. Kg2 Rg8 29. Nh4 Bxh4 30. Kh3 Bf6 31. g4 Rfg5 32. Rg1 h5 33. f3 Rh8 34. Kh4 Rxg4+ 35. Kh3 Rxg1 36. c4 Rhg8 37. cxd5 Rh1+ 0-1